fUSD/lending_fUSD_20260529
["ID","MTS","AMOUNT","RATE_DAILY","PERIOD"]
[423370333,1780067553000,-15207.29882588,0.00039363,2]
[423370328,1780067553000,-997.72460911,0.00039363,2]
[423370330,1780067553000,-818820.92710303,0.00039363,2]
[423370318,1780067553000,-1095.05749228,0.00039363,2]
[423370327,1780067553000,-643.0,0.00039363,2]
[423370325,1780067553000,-189.20468279,0.00039363,2]
[423370324,1780067553000,-13213.70437413,0.00039363,2]
[423370319,1780067553000,-1348.42755922,0.00039363,2]
[423370326,1780067553000,-5051.11946385,0.00039363,2]
[423370329,1780067553000,-589.06759329,0.00039363,2]
[423370342,1780067553000,-384.68215452,0.00039363,2]
[423370331,1780067553000,-3329.85365949,0.00039363,2]
[423370346,1780067553000,-872.47694327,0.00039363,2]
[423370341,1780067553000,-1310.51097588,0.00039363,2]
[423370339,1780067553000,-178.07626046,0.00039363,2]
[423370344,1780067553000,-678.37507063,0.00039363,2]
[423370338,1780067553000,-234.64489472,0.00039363,2]
[423370340,1780067553000,-6000.0,0.00039363,2]
[423370345,1780067553000,-8006.62928134,0.00039363,2]
[423370343,1780067553000,-1059.02011678,0.00039363,2]
[423370337,1780067553000,-15356.69461832,0.00039363,2]
[423370335,1780067553000,-11008.22973963,0.00039363,2]
[423370316,1780067553000,-560.5917869,0.00039363,2]
[423370334,1780067553000,-550.0,0.00039363,2]
[423370320,1780067553000,-3522.27688416,0.00039363,2]
[423370310,1780067553000,-1722.84478157,0.00039363,2]
[423370336,1780067553000,-174895.00526431,0.00039363,2]
[423370293,1780067553000,-125538.065745,0.00039363,2]
[423370299,1780067553000,-992.76564537,0.00039363,2]
[423370292,1780067553000,-7727.08104862,0.00039363,2]
[423370296,1780067553000,-721.88321244,0.00039363,2]
[423370297,1780067553000,-357.67461239,0.00039363,2]
[423370294,1780067553000,-1210.0,0.00039363,2]
[423370295,1780067553000,-52371.01625149,0.00039363,2]
[423370298,1780067553000,-2878.11120029,0.00039363,2]
[423370300,1780067553000,-1561.20860558,0.00039363,2]
[423370303,1780067553000,-504.07193963,0.00039363,2]
[423370304,1780067553000,-1528.71809829,0.00039363,2]
[423370309,1780067553000,-155.4050974,0.00039363,2]
[423370308,1780067553000,-222588.86762084,0.00039363,2]
[423370305,1780067553000,-2524.12417565,0.00039363,2]
[423370301,1780067553000,-1057.31036375,0.00039363,2]
[423370302,1780067553000,-5332.43252199,0.00039363,2]
[423370307,1780067553000,-2777.50709745,0.00039363,2]
[423370306,1780067553000,-2025.93586622,0.00039363,2]
[423370311,1780067553000,-255.88736479,0.00039363,2]
[423370313,1780067553000,-1295.50052467,0.00039363,2]
[423370321,1780067553000,-2259.70018,0.00039363,2]
[423370314,1780067553000,-59024.91931449,0.00039363,2]
[423370322,1780067553000,-23580.38284499,0.00039363,2]
[423370315,1780067553000,-1070.84477374,0.00039363,2]
[423370323,1780067553000,-768.49894562,0.00039363,2]
[423370317,1780067553000,-9512.17749536,0.00039363,2]
[423370347,1780067553000,-642.28880617,0.00039363,2]
[423370312,1780067553000,-500.0,0.00039363,2]
[423370349,1780067553000,-1093.77839291,0.00039363,2]
[423370379,1780067553000,-472.4322173,0.00039363,2]
[423370382,1780067553000,-12995.84515417,0.00039363,2]
[423370385,1780067553000,-204.60042844,0.00039363,2]
[423370387,1780067553000,-13731.99271488,0.00039363,2]
[423370383,1780067553000,-363.46207079,0.00039363,2]
[423370381,1780067553000,-610.0,0.00039363,2]
[423370384,1780067553000,-519.1799451,0.00039363,2]
[423370386,1780067553000,-761.73819999,0.00039363,2]
[423370388,1780067553000,-201.66003806,0.00039363,2]
[423370389,1780067553000,-1531.99707958,0.00039363,2]
[423370390,1780067553000,-379.0,0.00039363,2]
[423370393,1780067553000,-160.84720784,0.00039363,2]
[423370391,1780067553000,-20000.0,0.00039363,2]
[423370395,1780067553000,-1806.06903313,0.00039363,2]
[423370394,1780067553000,-150511.0,0.00039363,13]
[423370400,1780067553000,-500.0,0.00039363,2]
[423370397,1780067553000,-40000.0,0.00039363,10]
[423370401,1780067553000,-500.0,0.00039363,2]
[423370396,1780067553000,-190.0,0.00039363,2]
[423370398,1780067553000,-40000.0,0.00039363,12]
[423370399,1780067553000,-43000.0,0.00039363,19]
[423370403,1780067553000,-171.29304668,0.00039363,2]
[423370402,1780067553000,-504.55084079,0.00039363,2]
[423370404,1780067553000,-67949.09126222,0.00039363,2]
[423370352,1780067553000,-1100.0,0.00039363,2]
[423370376,1780067553000,-5849.75887961,0.00039363,2]
[423370377,1780067553000,-2230.38364741,0.00039363,2]
[423370392,1780067553000,-468.65507625,0.00039363,2]
[423370375,1780067553000,-290.06520739,0.00039363,2]
[423370378,1780067553000,-898.65856483,0.00039363,2]
[423370348,1780067553000,-220.19076941,0.00039363,2]
[423370350,1780067553000,-2500.0,0.00039363,2]
[423370357,1780067553000,-631.64260737,0.00039363,2]
[423370354,1780067553000,-935.31544945,0.00039363,2]
[423370356,1780067553000,-493.81719575,0.00039363,2]
[423370353,1780067553000,-3929.42826525,0.00039363,2]
[423370355,1780067553000,-232.46316288,0.00039363,2]
[423370368,1780067553000,-30933.83874037,0.00039363,2]
[423370359,1780067553000,-562.24641691,0.00039363,2]
[423370358,1780067553000,-1627.6555738,0.00039363,2]
[423370369,1780067553000,-280.23440495,0.00039363,2]
[423370362,1780067553000,-2261.4716234,0.00039363,2]
[423370351,1780067553000,-350.78043257,0.00039363,2]
[423370373,1780067553000,-208.06128145,0.00039363,2]
[423370360,1780067553000,-1037.4963318,0.00039363,2]
[423370374,1780067553000,-885.52557991,0.00039363,2]
[423370380,1780067553000,-150.0,0.00039363,2]
[423370372,1780067553000,-2503.17568345,0.00039363,2]
[423370370,1780067553000,-412.85640298,0.00039363,2]
[423370371,1780067553000,-20864.8555651,0.00039363,2]
[423370364,1780067553000,-12582.4571407,0.00039363,2]
[423370365,1780067553000,-1883.57150057,0.00039363,2]
[423370361,1780067553000,-374.08832113,0.00039363,2]
[423370366,1780067553000,-151441.89916634,0.00039363,2]
[423370367,1780067553000,-1146.75151559,0.00039363,2]
[423370363,1780067553000,-15222.72522198,0.00039363,2]
[423370439,1780067554000,-500.0,0.00039363,60]
[423370441,1780067554000,-500.0,0.00039363,60]
[423370444,1780067554000,-500.0,0.00039363,60]
[423370443,1780067554000,-500.0,0.00039363,60]
[423370440,1780067554000,-500.0,0.00039363,60]
[423370435,1780067554000,-160.78315148,0.00039363,30]
[423370436,1780067554000,-500.0,0.00039363,60]
[423370447,1780067554000,-579.83196064,0.00039363,30]
[423370437,1780067554000,-500.0,0.00039363,60]
[423370433,1780067554000,-500.0,0.00039363,60]
[423370446,1780067554000,-500.0,0.00039363,30]
[423370438,1780067554000,-500.0,0.00039363,60]
[423370442,1780067554000,-500.0,0.00039363,60]
[423370450,1780067554000,-500.0,0.00039363,90]
[423370449,1780067554000,-500.0,0.00039363,90]
[423370459,1780067554000,-500.0,0.00039363,90]
[423370451,1780067554000,-500.0,0.00039363,90]
[423370452,1780067554000,-500.0,0.00039363,90]
[423370448,1780067554000,-500.0,0.00039363,90]
[423370453,1780067554000,-500.0,0.00039363,90]
[423370455,1780067554000,-500.0,0.00039363,90]
[423370456,1780067554000,-500.0,0.00039363,90]
[423370454,1780067554000,-500.0,0.00039363,90]
[423370457,1780067554000,-500.0,0.00039363,90]
[423370458,1780067554000,-500.0,0.00039363,90]
[423370471,1780067554000,-500.0,0.00039363,90]
[423370445,1780067554000,-222.85320375,0.00039363,60]
[423370434,1780067554000,-500.0,0.00039363,60]
[423370405,1780067554000,-18308.86512043,0.00039363,20]
[423370430,1780067554000,-284.87365545,0.00039363,60]
[423370466,1780067554000,-500.0,0.00039363,90]
[423370407,1780067554000,-1146.47757389,0.00039363,2]
[423370406,1780067554000,-30304.06818861,0.00039363,3]
[423370409,1780067554000,-500.0,0.00039363,2]
[423370410,1780067554000,-318.65961435,0.00039363,2]
[423370411,1780067554000,-559.16057412,0.00039363,2]
[423370408,1780067554000,-180.0,0.00039363,2]
[423370412,1780067554000,-10023.00871856,0.00039363,2]
[423370414,1780067554000,-500.0,0.00039363,60]
[423370424,1780067554000,-500.0,0.00039363,30]
[423370415,1780067554000,-500.0,0.00039363,60]
[423370421,1780067554000,-100000.0,0.00039363,30]
[423370432,1780067554000,-500.0,0.00039363,60]
[423370422,1780067554000,-500.0,0.00039363,30]
[423370419,1780067554000,-506.47769254,0.00039363,60]
[423370417,1780067554000,-500.0,0.00039363,60]
[423370418,1780067554000,-500.0,0.00039363,60]
[423370413,1780067554000,-500.0,0.00039363,60]
[423370420,1780067554000,-508.04721952,0.00039363,30]
[423370423,1780067554000,-500.0,0.00039363,30]
[423370425,1780067554000,-500.0,0.00039363,30]
[423370428,1780067554000,-100000.0,0.00039363,30]
[423370427,1780067554000,-549.64,0.00039363,30]
[423370431,1780067554000,-500.0,0.00039363,90]
[423370426,1780067554000,-58138.0,0.00039363,30]
[423370429,1780067554000,-305.8822139,0.00039363,60]
[423370416,1780067554000,-500.0,0.00039363,60]
[423370464,1780067554000,-500.0,0.00039363,90]
[423370462,1780067554000,-500.0,0.00039363,90]
[423370522,1780067554000,-150.64,0.00039363,30]
[423370495,1780067554000,-1124.0,0.00039363,30]
[423370494,1780067554000,-99126.0,0.00039363,30]
[423370498,1780067554000,-549.77,0.00039363,30]
[423370499,1780067554000,-500.0,0.00039363,31]
[423370500,1780067554000,-500.0,0.00039363,31]
[423370509,1780067554000,-500.0,0.00039363,31]
[423370502,1780067554000,-500.0,0.00039363,31]
[423370501,1780067554000,-500.0,0.00039363,31]
[423370503,1780067554000,-500.0,0.00039363,31]
[423370504,1780067554000,-500.0,0.00039363,31]
[423370507,1780067554000,-500.0,0.00039363,31]
[423370505,1780067554000,-500.0,0.00039363,31]
[423370508,1780067554000,-500.0,0.00039363,31]
[423370512,1780067554000,-500.0,0.00039363,31]
[423370513,1780067554000,-372.55863344,0.00039363,31]
[423370510,1780067554000,-500.0,0.00039363,31]
[423370514,1780067554000,-1009.30787641,0.00039363,30]
[423370521,1780067554000,-150.64,0.00039363,30]
[423370515,1780067554000,-50000.0,0.00039363,53]
[423370511,1780067554000,-500.0,0.00039363,31]
[423370519,1780067554000,-150.64,0.00039363,30]
[423370517,1780067554000,-150.64,0.00039363,30]
[423370516,1780067554000,-259.80264374,0.00039363,90]
[423370520,1780067554000,-150.64,0.00039363,30]
[423370518,1780067554000,-150.64,0.00039363,30]
[423370460,1780067554000,-500.0,0.00039363,90]
[423370523,1780067554000,-150.64,0.00039363,30]
[423370493,1780067554000,-541.43636667,0.00039363,30]
[423370491,1780067554000,-308.33443439,0.00039363,60]
[423370506,1780067554000,-500.0,0.00039363,31]
[423370497,1780067554000,-549.75,0.00039363,30]
[423370461,1780067554000,-500.0,0.00039363,90]
[423370489,1780067554000,-500.0,0.00039363,90]
[423370470,1780067554000,-528.54687231,0.00039363,90]
[423370467,1780067554000,-500.0,0.00039363,90]
[423370469,1780067554000,-500.0,0.00039363,90]
[423370468,1780067554000,-500.0,0.00039363,90]
[423370465,1780067554000,-500.0,0.00039363,90]
[423370472,1780067554000,-500.0,0.00039363,90]
[423370474,1780067554000,-500.0,0.00039363,90]
[423370482,1780067554000,-500.0,0.00039363,90]
[423370475,1780067554000,-500.0,0.00039363,90]
[423370481,1780067554000,-500.0,0.00039363,90]
[423370476,1780067554000,-500.0,0.00039363,90]
[423370477,1780067554000,-500.0,0.00039363,90]
[423370463,1780067554000,-500.0,0.00039363,90]
[423370473,1780067554000,-500.0,0.00039363,90]
[423370478,1780067554000,-500.0,0.00039363,90]
[423370485,1780067554000,-500.0,0.00039363,90]
[423370492,1780067554000,-500.0,0.00039363,30]
[423370490,1780067554000,-560.44482763,0.00039363,90]
[423370487,1780067554000,-500.0,0.00039363,90]
[423370496,1780067554000,-549.75,0.00039363,30]
[423370488,1780067554000,-500.0,0.00039363,90]
[423370483,1780067554000,-500.0,0.00039363,90]
[423370484,1780067554000,-500.0,0.00039363,90]
[423370480,1780067554000,-500.0,0.00039363,90]
[423370479,1780067554000,-500.0,0.00039363,90]
[423370486,1780067554000,-500.0,0.00039363,90]
[423370562,1780067555000,-150.64,0.00039363,30]
[423370563,1780067555000,-150.64,0.00039363,30]
[423370560,1780067555000,-150.64,0.00039363,30]
[423370552,1780067555000,-150.64,0.00039363,30]
[423370561,1780067555000,-150.64,0.00039363,30]
[423370559,1780067555000,-150.64,0.00039363,30]
[423370556,1780067555000,-150.64,0.00039363,30]
[423370553,1780067555000,-150.64,0.00039363,30]
[423370554,1780067555000,-150.64,0.00039363,30]
[423370568,1780067555000,-150.64,0.00039363,30]
[423370558,1780067555000,-150.64,0.00039363,30]
[423370564,1780067555000,-150.64,0.00039363,30]
[423370577,1780067555000,-150.64,0.00039363,30]
[423370567,1780067555000,-150.64,0.00039363,30]
[423370565,1780067555000,-150.64,0.00039363,30]
[423370569,1780067555000,-150.64,0.00039363,30]
[423370570,1780067555000,-150.64,0.00039363,30]
[423370580,1780067555000,-150.64,0.00039363,30]
[423370579,1780067555000,-150.64,0.00039363,30]
[423370573,1780067555000,-150.64,0.00039363,30]
[423370571,1780067555000,-150.64,0.00039363,30]
[423370574,1780067555000,-500.0,0.00039363,30]
[423370575,1780067555000,-150.64,0.00039363,30]
[423370576,1780067555000,-309.40561237,0.00039363,30]
[423370555,1780067555000,-150.64,0.00039363,30]
[423370566,1780067555000,-150.64,0.00039363,30]
[423370547,1780067555000,-150.64,0.00039363,30]
[423370578,1780067555000,-150.64,0.00039363,30]
[423370548,1780067555000,-150.64,0.00039363,30]
[423370526,1780067555000,-150.64,0.00039363,30]
[423370527,1780067555000,-150.64,0.00039363,30]
[423370524,1780067555000,-150.64,0.00039363,30]
[423370530,1780067555000,-150.64,0.00039363,30]
[423370528,1780067555000,-150.64,0.00039363,30]
[423370525,1780067555000,-150.64,0.00039363,30]
[423370529,1780067555000,-150.64,0.00039363,30]
[423370531,1780067555000,-150.64,0.00039363,30]
[423370532,1780067555000,-150.64,0.00039363,30]
[423370533,1780067555000,-150.64,0.00039363,30]
[423370535,1780067555000,-150.64,0.00039363,30]
[423370545,1780067555000,-150.64,0.00039363,30]
[423370557,1780067555000,-150.64,0.00039363,30]
[423370536,1780067555000,-150.64,0.00039363,30]
[423370534,1780067555000,-150.64,0.00039363,30]
[423370538,1780067555000,-150.64,0.00039363,30]
[423370539,1780067555000,-150.64,0.00039363,30]
[423370540,1780067555000,-150.64,0.00039363,30]
[423370543,1780067555000,-150.64,0.00039363,30]
[423370541,1780067555000,-150.64,0.00039363,30]
[423370542,1780067555000,-150.64,0.00039363,30]
[423370544,1780067555000,-150.64,0.00039363,30]
[423370546,1780067555000,-150.64,0.00039363,30]
[423370551,1780067555000,-150.64,0.00039363,30]
[423370549,1780067555000,-150.64,0.00039363,30]
[423370550,1780067555000,-150.64,0.00039363,30]
[423370537,1780067555000,-150.64,0.00039363,30]
[423370582,1780067555000,-150.64,0.00039363,30]
[423370572,1780067555000,-150.64,0.00039363,30]
[423370581,1780067555000,-150.64,0.00039363,30]
[423370613,1780067555000,-500.0,0.00039363,90]
[423370615,1780067555000,-164.6,0.00039363,90]
[423370617,1780067555000,-500.0,0.00039363,30]
[423370622,1780067555000,-500.0,0.00039363,90]
[423370624,1780067555000,-500.0,0.00039363,90]
[423370625,1780067555000,-540.06605577,0.00039363,90]
[423370618,1780067555000,-346.17166509,0.00039363,30]
[423370620,1780067555000,-500.0,0.00039363,90]
[423370621,1780067555000,-500.0,0.00039363,90]
[423370619,1780067555000,-369.45529845,0.00039363,60]
[423370623,1780067555000,-500.0,0.00039363,90]
[423370628,1780067555000,-500.0,0.00039363,90]
[423370614,1780067555000,-500.0,0.00039363,90]
[423370626,1780067555000,-500.0,0.00039363,90]
[423370640,1780067555000,-1124.0,0.00039363,30]
[423370630,1780067555000,-500.0,0.00039363,30]
[423370632,1780067555000,-500.0,0.00039363,30]
[423370629,1780067555000,-500.0,0.00039363,30]
[423370631,1780067555000,-500.0,0.00039363,30]
[423370633,1780067555000,-5000.0,0.00039363,39]
[423370637,1780067555000,-517.08296511,0.00039363,60]
[423370636,1780067555000,-500.0,0.00039363,90]
[423370638,1780067555000,-1124.0,0.00039363,30]
[423370635,1780067555000,-500.0,0.00039363,90]
[423370639,1780067555000,-1124.0,0.00039363,30]
[423370634,1780067555000,-500.0,0.00039363,90]
[423370627,1780067555000,-500.0,0.00039363,90]
[423370605,1780067555000,-296.09137839,0.00039363,90]
[423370592,1780067555000,-500.0,0.00039363,30]
[423370608,1780067555000,-500.0,0.00039363,60]
[423370612,1780067555000,-500.0,0.00039363,90]
[423370584,1780067555000,-150.64,0.00039363,30]
[423370585,1780067555000,-291.43263447,0.00039363,60]
[423370588,1780067555000,-578.22243979,0.00039363,60]
[423370586,1780067555000,-564.32878875,0.00039363,30]
[423370587,1780067555000,-532.65728444,0.00039363,60]
[423370583,1780067555000,-150.64,0.00039363,30]
[423370589,1780067555000,-205.10496274,0.00039363,31]
[423370591,1780067555000,-1000.0,0.00039363,30]
[423370593,1780067555000,-500.0,0.00039363,30]
[423370595,1780067555000,-500.0,0.00039363,30]
[423370598,1780067555000,-500.0,0.00039363,30]
[423370602,1780067555000,-500.0,0.00039363,90]
[423370590,1780067555000,-563.75602925,0.00039363,30]
[423370597,1780067555000,-500.0,0.00039363,30]
[423370596,1780067555000,-500.0,0.00039363,30]
[423370607,1780067555000,-1124.0,0.00039363,30]
[423370610,1780067555000,-390.12771424,0.00039363,100]
[423370611,1780067555000,-500.0,0.00039363,90]
[423370606,1780067555000,-500.0,0.00039363,30]
[423370600,1780067555000,-172.23051321,0.00039363,30]
[423370616,1780067555000,-500.0,0.00039363,30]
[423370609,1780067555000,-462.19984975,0.00039363,60]
[423370601,1780067555000,-500.0,0.00039363,90]
[423370603,1780067555000,-500.0,0.00039363,90]
[423370594,1780067555000,-500.0,0.00039363,30]
[423370599,1780067555000,-500.0,0.00039363,30]
[423370604,1780067555000,-500.0,0.00039363,90]
[423370677,1780067556000,-2301.9,0.00039363,30]
[423370680,1780067556000,-2301.9,0.00039363,30]
[423370683,1780067556000,-2301.9,0.00039363,30]
[423370681,1780067556000,-2301.9,0.00039363,30]
[423370689,1780067556000,-500.0,0.00039363,60]
[423370672,1780067556000,-2301.9,0.00039363,30]
[423370678,1780067556000,-2301.9,0.00039363,30]
[423370674,1780067556000,-2301.9,0.00039363,30]
[423370673,1780067556000,-2301.9,0.00039363,30]
[423370670,1780067556000,-2301.9,0.00039363,30]
[423370685,1780067556000,-2301.99281484,0.00039363,30]
[423370688,1780067556000,-500.0,0.00039363,60]
[423370684,1780067556000,-2301.9,0.00039363,30]
[423370696,1780067556000,-500.0,0.00039363,120]
[423370682,1780067556000,-2301.9,0.00039363,30]
[423370687,1780067556000,-500.0,0.00039363,60]
[423370686,1780067556000,-500.0,0.00039363,60]
[423370690,1780067556000,-500.0,0.00039363,60]
[423370691,1780067556000,-500.0,0.00039363,60]
[423370697,1780067556000,-500.0,0.00039363,120]
[423370701,1780067556000,-500.0,0.00039363,120]
[423370692,1780067556000,-500.0,0.00039363,60]
[423370699,1780067556000,-500.0,0.00039363,120]
[423370695,1780067556000,-500.0,0.00039363,120]
[423370698,1780067556000,-500.0,0.00039363,120]
[423370693,1780067556000,-83.24880853,0.00039363,120]
[423370667,1780067556000,-2301.9,0.00039363,30]
[423370679,1780067556000,-2301.9,0.00039363,30]
[423370665,1780067556000,-2301.9,0.00039363,30]
[423370663,1780067556000,-2301.9,0.00039363,30]
[423370664,1780067556000,-2301.9,0.00039363,30]
[423370641,1780067556000,-500.0,0.00039363,100]
[423370694,1780067556000,-500.0,0.00039363,120]
[423370652,1780067556000,-500.0,0.00039363,30]
[423370647,1780067556000,-500.0,0.00039363,30]
[423370650,1780067556000,-500.0,0.00039363,30]
[423370642,1780067556000,-500.0,0.00039363,100]
[423370645,1780067556000,-500.0,0.00039363,90]
[423370648,1780067556000,-500.0,0.00039363,30]
[423370644,1780067556000,-301.01500997,0.00039363,100]
[423370651,1780067556000,-500.0,0.00039363,30]
[423370646,1780067556000,-500.0,0.00039363,90]
[423370643,1780067556000,-500.0,0.00039363,100]
[423370656,1780067556000,-500.0,0.00039363,30]
[423370653,1780067556000,-500.0,0.00039363,30]
[423370655,1780067556000,-500.0,0.00039363,30]
[423370654,1780067556000,-500.0,0.00039363,30]
[423370657,1780067556000,-500.0,0.00039363,30]
[423370661,1780067556000,-191.47011119,0.00039363,30]
[423370662,1780067556000,-2301.9,0.00039363,30]
[423370659,1780067556000,-500.0,0.00039363,30]
[423370658,1780067556000,-500.0,0.00039363,30]
[423370660,1780067556000,-500.0,0.00039363,30]
[423370666,1780067556000,-2301.9,0.00039363,30]
[423370675,1780067556000,-2301.9,0.00039363,30]
[423370671,1780067556000,-2301.9,0.00039363,30]
[423370676,1780067556000,-2301.9,0.00039363,30]
[423370668,1780067556000,-2301.9,0.00039363,30]
[423370669,1780067556000,-2301.9,0.00039363,30]
[423370649,1780067556000,-500.0,0.00039363,30]
[423370700,1780067556000,-500.0,0.00039363,120]
[423370713,1780067556000,-500.0,0.00039363,120]
[423370731,1780067556000,-500.0,0.00039363,120]
[423370729,1780067556000,-500.0,0.00039363,120]
[423370732,1780067556000,-500.0,0.00039363,120]
[423370740,1780067556000,-537.36,0.00039363,120]
[423370739,1780067556000,-500.0,0.00039363,120]
[423370744,1780067556000,-537.36,0.00039363,120]
[423370751,1780067556000,-500.0,0.00039363,120]
[423370747,1780067556000,-500.0,0.00039363,120]
[423370745,1780067556000,-300.48,0.00039363,120]
[423370741,1780067556000,-500.0,0.00039363,120]
[423370742,1780067556000,-500.0,0.00039363,120]
[423370743,1780067556000,-500.0,0.00039363,120]
[423370750,1780067556000,-537.36,0.00039363,120]
[423370746,1780067556000,-500.0,0.00039363,120]
[423370749,1780067556000,-369.36860198,0.00039363,120]
[423370748,1780067556000,-500.0,0.00039363,90]
[423370753,1780067556000,-500.0,0.00039363,120]
[423370752,1780067556000,-500.0,0.00039363,120]
[423370754,1780067556000,-500.0,0.00039363,90]
[423370756,1780067556000,-169.46782421,0.00039363,120]
[423370755,1780067556000,-537.36,0.00039363,120]
[423370758,1780067556000,-500.0,0.00039363,120]
[423370762,1780067556000,-500.0,0.00039363,120]
[423370759,1780067556000,-500.0,0.00039363,90]
[423370761,1780067556000,-238.86855147,0.00039363,120]
[423370760,1780067556000,-537.36,0.00039363,120]
[423370703,1780067556000,-608.79,0.00039363,120]
[423370733,1780067556000,-537.36,0.00039363,120]
[423370730,1780067556000,-500.0,0.00039363,120]
[423370757,1780067556000,-500.0,0.00039363,120]
[423370738,1780067556000,-500.0,0.00039363,120]
[423370727,1780067556000,-440.52314091,0.00039363,120]
[423370706,1780067556000,-500.0,0.00039363,120]
[423370702,1780067556000,-500.0,0.00039363,120]
[423370704,1780067556000,-500.0,0.00039363,120]
[423370707,1780067556000,-500.0,0.00039363,120]
[423370710,1780067556000,-537.36,0.00039363,120]
[423370708,1780067556000,-500.0,0.00039363,120]
[423370712,1780067556000,-537.36,0.00039363,120]
[423370711,1780067556000,-500.0,0.00039363,120]
[423370709,1780067556000,-500.0,0.00039363,120]
[423370714,1780067556000,-376.66002146,0.00039363,120]
[423370716,1780067556000,-500.0,0.00039363,120]
[423370717,1780067556000,-537.36,0.00039363,120]
[423370715,1780067556000,-500.0,0.00039363,120]
[423370705,1780067556000,-500.0,0.00039363,120]
[423370718,1780067556000,-500.0,0.00039363,120]
[423370722,1780067556000,-240.16,0.00039363,120]
[423370737,1780067556000,-537.36,0.00039363,120]
[423370736,1780067556000,-500.0,0.00039363,120]
[423370734,1780067556000,-500.0,0.00039363,120]
[423370728,1780067556000,-537.36,0.00039363,120]
[423370726,1780067556000,-500.0,0.00039363,120]
[423370735,1780067556000,-500.0,0.00039363,120]
[423370725,1780067556000,-500.0,0.00039363,120]
[423370721,1780067556000,-537.36,0.00039363,120]
[423370724,1780067556000,-537.36,0.00039363,120]
[423370720,1780067556000,-500.0,0.00039363,120]
[423370719,1780067556000,-500.0,0.00039363,120]
[423370723,1780067556000,-500.0,0.00039363,120]
[423370803,1780067557000,-537.42,0.00039363,120]
[423370805,1780067557000,-280.92,0.00039363,120]
[423370807,1780067557000,-573.91,0.00039363,120]
[423370798,1780067557000,-500.0,0.00039363,120]
[423370796,1780067557000,-500.0,0.00039363,120]
[423370800,1780067557000,-500.0,0.00039363,120]
[423370797,1780067557000,-500.0,0.00039363,120]
[423370790,1780067557000,-537.36,0.00039363,120]
[423370795,1780067557000,-537.36,0.00039363,120]
[423370802,1780067557000,-638.89685324,0.00039363,120]
[423370799,1780067557000,-537.36,0.00039363,120]
[423370794,1780067557000,-500.0,0.00039363,120]
[423370812,1780067557000,-500.0,0.00039363,30]
[423370804,1780067557000,-500.0,0.00039363,120]
[423370806,1780067557000,-573.91,0.00039363,120]
[423370808,1780067557000,-500.0,0.00039363,30]
[423370810,1780067557000,-500.0,0.00039363,30]
[423370801,1780067557000,-500.0,0.00039363,120]
[423370811,1780067557000,-573.91,0.00039363,120]
[423370822,1780067557000,-573.91,0.00039363,120]
[423370814,1780067557000,-351.75728579,0.00039363,30]
[423370813,1780067557000,-573.91,0.00039363,120]
[423370816,1780067557000,-573.91,0.00039363,120]
[423370815,1780067557000,-573.91,0.00039363,120]
[423370818,1780067557000,-1002.87,0.00039363,120]
[423370792,1780067557000,-500.0,0.00039363,120]
[423370809,1780067557000,-573.91,0.00039363,120]
[423370791,1780067557000,-500.0,0.00039363,120]
[423370771,1780067557000,-500.0,0.00039363,120]
[423370789,1780067557000,-500.0,0.00039363,120]